lending/lending_fUSD_20240219
["ID","MTS","AMOUNT","RATE_DAILY","PERIOD"]
[314498909,1708377106727,-597.62,0.00048219,30]
[314498910,1708377106737,-555.82,0.00048219,30]
[314498911,1708377106746,-500.0,0.00048219,30]
[314498912,1708377106756,-500.0,0.00048219,30]
[314498913,1708377106765,-500.0,0.00048219,30]
[314498914,1708377106775,-500.0,0.00048219,30]
[314498915,1708377106785,-918.19,0.00048219,30]
[314498916,1708377106794,-500.0,0.00048219,30]
[314498917,1708377106803,-500.0,0.00048219,30]
[314498918,1708377106812,-578.31,0.00048219,30]
[314498919,1708377106822,-506.71033131,0.00048219,30]
[314498920,1708377106831,-500.0,0.00048219,30]
[314498921,1708377106841,-500.0,0.00048219,30]
[314498922,1708377106850,-500.0,0.00048219,30]
[314498923,1708377106859,-500.0,0.00048219,30]
[314498924,1708377106869,-500.0,0.00048219,30]
[314498925,1708377106878,-527.96,0.00048219,30]
[314498926,1708377106888,-500.0,0.00048219,30]
[314498927,1708377106898,-500.0,0.00048219,30]
[314498928,1708377106908,-500.0,0.00048219,30]
[314498929,1708377106918,-500.0,0.00048219,30]
[314498930,1708377106927,-500.0,0.00048219,30]
[314498931,1708377106937,-500.0,0.00048219,30]
[314498932,1708377106947,-500.0,0.00048219,30]
[314498933,1708377106957,-500.0,0.00048219,30]
[314498934,1708377106966,-500.0,0.00048219,30]
[314498935,1708377106975,-553.98,0.00048219,30]
[314498936,1708377106985,-500.0,0.00048219,30]
[314498937,1708377106995,-500.0,0.00048219,30]
[314498938,1708377107005,-500.0,0.00048219,30]
[314498939,1708377107014,-529.69,0.00048219,30]
[314498940,1708377107024,-500.0,0.00048219,30]
[314498941,1708377107034,-500.0,0.00048219,30]
[314498942,1708377107043,-500.0,0.00048219,30]
[314498943,1708377107054,-500.0,0.00048219,30]
[314498944,1708377107063,-556.74,0.00048219,30]
[314498945,1708377107073,-500.0,0.00048219,30]
[314498946,1708377107083,-692.58,0.00048219,30]
[314498947,1708377107093,-500.0,0.00048219,30]
[314498948,1708377107102,-552.5,0.00048219,30]
[314498949,1708377107112,-500.0,0.00048219,30]
[314498950,1708377107121,-500.0,0.00048219,30]
[314498951,1708377107131,-500.0,0.00048219,30]
[314498952,1708377107140,-500.0,0.00048219,30]
[314498953,1708377107149,-500.0,0.00048219,30]
[314498954,1708377107158,-591.77,0.00048219,30]
[314498955,1708377107167,-500.0,0.00048219,30]
[314498956,1708377107177,-500.0,0.00048219,30]
[314498957,1708377107187,-664.26,0.00048219,30]
[314498958,1708377107197,-500.0,0.00048219,30]
[314498959,1708377107207,-500.0,0.00048219,30]
[314498960,1708377107216,-500.0,0.00048219,30]
[314498961,1708377107226,-500.0,0.00048219,30]
[314498962,1708377107235,-646.62,0.00048219,30]
[314498963,1708377107244,-219.9754602,0.00048219,30]
[314498964,1708377107254,-635.19,0.00048219,30]
[314498965,1708377107263,-500.0,0.00048219,30]
[314498966,1708377107272,-497.16576252,0.00048219,30]
[314498967,1708377107282,-500.0,0.00048219,30]
[314498968,1708377107291,-500.0,0.00048219,30]
[314498969,1708377107301,-514.25,0.00048219,30]
[314498970,1708377107312,-500.0,0.00048219,30]
[314498971,1708377107323,-667.9,0.00048219,30]
[314498972,1708377107332,-538.23,0.00048219,30]
[314498973,1708377107342,-500.0,0.00048219,30]
[314498974,1708377107351,-500.0,0.00048219,30]
[314498975,1708377107360,-516.68,0.00048219,30]
[314498976,1708377107370,-597.95437736,0.00048219,30]
[314498977,1708377107379,-500.0,0.00048219,30]
[314498978,1708377107389,-615.42,0.00048219,30]
[314498979,1708377107398,-500.0,0.00048219,30]
[314498980,1708377107407,-500.0,0.00048219,30]
[314498981,1708377107417,-500.0,0.00048219,30]
[314498982,1708377107428,-511.19008811,0.00048219,30]
[314498983,1708377107438,-500.0,0.00048219,30]
[314498984,1708377107448,-500.0,0.00048219,30]
[314498985,1708377107461,-617.0,0.00048219,30]
[314498986,1708377107472,-448.52125235,0.00048219,30]
[314498987,1708377107482,-340.80840875,0.00048219,30]
[314498988,1708377107494,-544.62,0.00048219,30]
[314498989,1708377107505,-500.0,0.00048219,30]
[314498990,1708377107516,-500.0,0.00048219,30]
[314498991,1708377107526,-500.0,0.00048219,30]
[314498992,1708377107537,-500.0,0.00048219,30]
[314498993,1708377107547,-500.0,0.00048219,30]
[314498994,1708377107560,-500.0,0.00048219,30]
[314498995,1708377107569,-1052.96,0.00048219,30]
[314498996,1708377107578,-500.0,0.00048219,30]
[314498997,1708377107587,-553.52,0.00048219,30]
[314498998,1708377107597,-500.0,0.00048219,30]
[314498999,1708377107607,-500.0,0.00048219,30]
[314499000,1708377107616,-500.0,0.00048219,30]
[314499001,1708377107626,-566.64,0.00048219,30]
[314499002,1708377107635,-500.0,0.00048219,30]
[314499003,1708377107644,-500.0,0.00048219,30]
[314499004,1708377107654,-500.0,0.00048219,30]
[314499005,1708377107663,-500.0,0.00048219,30]
[314499006,1708377107673,-500.0,0.00048219,30]
[314499007,1708377107682,-500.0,0.00048219,30]
[314499008,1708377107692,-519.09,0.00048219,30]
[314499009,1708377107702,-772.36,0.00048219,30]
[314499010,1708377107711,-500.0,0.00048219,30]
[314499011,1708377107721,-500.0,0.00048219,30]
[314499012,1708377107730,-500.0,0.00048219,30]
[314499013,1708377107739,-500.0,0.00048219,30]
[314499014,1708377107749,-500.0,0.00048219,30]
[314499015,1708377107758,-558.08,0.00048219,30]
[314499016,1708377107768,-767.53,0.00048219,30]
[314499017,1708377107778,-677.61,0.00048219,30]
[314499018,1708377107788,-500.0,0.00048219,30]
[314499019,1708377107798,-521.79,0.00048219,30]
[314499020,1708377107809,-500.0,0.00048219,30]
[314499021,1708377107819,-594.14,0.00048219,30]
[314499022,1708377107830,-500.0,0.00048219,30]
[314499023,1708377107839,-781.41,0.00048219,30]
[314499024,1708377107849,-500.0,0.00048219,30]
[314499025,1708377107859,-500.0,0.00048219,30]
[314499026,1708377107869,-745.38,0.00048219,30]
[314499027,1708377107879,-500.0,0.00048219,30]
[314499028,1708377107889,-500.0,0.00048219,30]
[314499029,1708377107899,-500.0,0.00048219,30]
[314499030,1708377107910,-230.11,0.00048219,30]
[314499031,1708377107920,-500.0,0.00048219,30]
[314499032,1708377107930,-500.0,0.00048219,30]
[314499033,1708377107939,-500.0,0.00048219,30]
[314499034,1708377107950,-1082.3,0.00048219,30]
[314499035,1708377107960,-500.0,0.00048219,30]
[314499036,1708377107969,-627.94,0.00048219,30]
[314499037,1708377107979,-500.0,0.00048219,30]
[314499038,1708377107989,-505.9,0.00048219,30]
[314499039,1708377107998,-500.0,0.00048219,30]
[314499040,1708377108009,-529.79,0.00048219,30]
[314499041,1708377108020,-500.0,0.00048219,30]
[314499042,1708377108029,-536.14,0.00048219,30]
[314499043,1708377108040,-3104.74,0.00048219,30]
[314499044,1708377108050,-500.0,0.00048219,30]
[314499045,1708377108062,-523.82,0.00048219,30]
[314499046,1708377108072,-557.18,0.00048219,30]
[314499047,1708377108082,-1017.28,0.00048219,30]
[314499048,1708377108092,-500.0,0.00048219,30]
[314499049,1708377108102,-2181.83,0.00048219,30]
[314499050,1708377108112,-804.05,0.00048219,30]
[314499051,1708377108122,-500.0,0.00048219,30]
[314499052,1708377108131,-837.03,0.00048219,30]
[314499053,1708377108141,-1389.72,0.00048219,30]
[314499054,1708377108151,-500.0,0.00048219,30]
[314499055,1708377108161,-654.5,0.00048219,30]
[314499056,1708377108171,-500.0,0.00048219,30]
[314499057,1708377108181,-771.23,0.00048219,30]
[314499058,1708377108191,-500.44,0.00048219,30]
[314499059,1708377108201,-500.0,0.00048219,30]
[314499060,1708377108210,-500.0,0.00048219,30]
[314499061,1708377108221,-500.0,0.00048219,30]
[314499062,1708377108231,-604.81,0.00048219,30]
[314499063,1708377108241,-1426.77,0.00048219,30]
[314499064,1708377108250,-527.43,0.00048219,30]
[314499065,1708377108260,-500.0,0.00048219,30]
[314499066,1708377108270,-1745.38,0.00048219,30]
[314499067,1708377108280,-1075.7,0.00048219,30]
[314499068,1708377108290,-1268.71,0.00048219,30]
[314499069,1708377108301,-500.0,0.00048219,30]
[314499070,1708377108311,-886.05,0.00048219,30]
[314499071,1708377108321,-255.68,0.00048219,30]
[314499072,1708377108331,-500.0,0.00048219,30]
[314499073,1708377108341,-500.0,0.00048219,30]
[314499074,1708377108351,-899.22,0.00048219,30]
[314499075,1708377108361,-2678.83,0.00048219,30]
[314499076,1708377108371,-384.96340669,0.00048219,30]
[314499077,1708377108381,-2702.11,0.00048219,30]
[314499078,1708377108391,-1833.32,0.00048219,30]
[314499079,1708377108403,-10950.38,0.00048219,30]
[314499080,1708377108413,-500.0,0.00048219,30]
[314499081,1708377108423,-741.32,0.00048219,30]
[314499082,1708377108433,-3140.24,0.00048219,30]
[314499083,1708377108442,-537.87991453,0.00048219,30]
[314499084,1708377108453,-500.0,0.00048219,30]
[314499085,1708377108466,-500.0,0.00048219,30]
[314499086,1708377108477,-1835.49,0.00048219,30]
[314499087,1708377108487,-503.56,0.00048219,30]
[314499088,1708377108498,-694.62,0.00048219,30]
[314499089,1708377108508,-599.22,0.00048219,30]
[314499090,1708377108518,-500.0,0.00048219,30]
[314499091,1708377108528,-2331.98,0.00048219,30]
[314499092,1708377108539,-20395.47,0.00048219,30]
[314499093,1708377108554,-1530.72,0.00048219,30]
[314499094,1708377108567,-789.92,0.00048219,30]
[314499095,1708377108577,-780.99,0.00048219,30]
[314499096,1708377108587,-500.0,0.00048219,30]
[314499097,1708377108597,-2037.65,0.00048219,30]
[314499098,1708377108607,-500.0,0.00048219,30]
[314499099,1708377108617,-500.0,0.00048219,30]
[314499100,1708377108626,-796.83,0.00048219,30]
[314499101,1708377108637,-500.0,0.00048219,30]
[314499102,1708377108647,-562.3,0.00048219,30]
[314499103,1708377108657,-1380.27,0.00048219,30]
[314499104,1708377108667,-3662.65,0.00048219,30]
[314499105,1708377108677,-1316.81,0.00048219,30]
[314499106,1708377108687,-677.42,0.00048219,30]
[314499107,1708377108697,-515.48,0.00048219,30]
[314499108,1708377108707,-500.0,0.00048219,30]
[314499109,1708377108717,-500.0,0.00048219,30]
[314499110,1708377108727,-1284.51,0.00048219,30]
[314499111,1708377108737,-500.0,0.00048219,30]
[314499112,1708377108747,-679.93,0.00048219,30]
[314499113,1708377108757,-500.0,0.00048219,30]
[314499114,1708377108767,-500.0,0.00048219,30]
[314499115,1708377108777,-768.65,0.00048219,30]
[314499116,1708377108787,-500.0,0.00048219,30]
[314499117,1708377108798,-2893.51,0.00048219,30]
[314499118,1708377108814,-500.0,0.00048219,30]
[314499119,1708377108823,-500.0,0.00048219,30]
[314499120,1708377108833,-5456.49,0.00048219,30]
[314499121,1708377108843,-500.0,0.00048219,30]
[314499122,1708377108853,-500.0,0.00048219,30]
[314499123,1708377108864,-2571.27,0.00048219,30]
[314499124,1708377108874,-826.56,0.00048219,30]
[314499125,1708377108884,-500.0,0.00048219,30]
[314499126,1708377108894,-466.87717302,0.00048219,30]
[314499127,1708377108905,-1599.05,0.00048219,30]
[314499128,1708377108915,-500.0,0.00048219,30]
[314499129,1708377108925,-500.0,0.00048219,30]
[314499130,1708377108935,-500.0,0.00048219,30]
[314499131,1708377108945,-721.27,0.00048219,30]
[314499132,1708377108956,-500.0,0.00048219,30]
[314499133,1708377108965,-2039.63,0.00048219,30]
[314499134,1708377108975,-2095.21,0.00048219,30]
[314499135,1708377108985,-727.3,0.00048219,30]
[314499136,1708377108996,-500.0,0.00048219,30]
[314499137,1708377109006,-500.0,0.00048219,30]
[314499138,1708377109016,-500.0,0.00048219,30]
[314499139,1708377109027,-846.21,0.00048219,30]
[314499140,1708377109037,-1638.65,0.00048219,30]
[314499141,1708377109047,-1395.59,0.00048219,30]
[314499142,1708377109058,-586.56,0.00048219,30]
[314499143,1708377109068,-1364.92,0.00048219,30]
[314499144,1708377109078,-1945.02,0.00048219,30]
[314499145,1708377109088,-628.31,0.00048219,30]
[314499146,1708377109098,-500.0,0.00048219,30]
[314499147,1708377109108,-2020.6,0.00048219,30]
[314499148,1708377109118,-500.0,0.00048219,30]
[314499149,1708377109129,-598.48,0.00048219,30]
[314499150,1708377109138,-500.0,0.00048219,30]
[314499151,1708377109149,-500.0,0.00048219,30]
[314499152,1708377109159,-500.0,0.00048219,30]
[314499153,1708377109169,-2298.57,0.00048219,30]
[314499154,1708377109179,-500.0,0.00048219,30]
[314499155,1708377109189,-500.0,0.00048219,30]
[314499156,1708377109199,-500.0,0.00048219,30]
[314499157,1708377109209,-1046.88,0.00048219,30]
[314499158,1708377109219,-1430.94,0.00048219,30]
[314499159,1708377109229,-500.0,0.00048219,30]
[314499160,1708377109239,-990.31,0.00048219,30]
[314499161,1708377109249,-500.0,0.00048219,30]
[314499162,1708377109259,-941.5,0.00048219,30]
[314499163,1708377109269,-2710.69,0.00048219,30]
[314499164,1708377109278,-11885.76,0.00048219,30]
[314499165,1708377109289,-500.0,0.00048219,30]
[314499166,1708377109298,-500.0,0.00048219,30]
[314499167,1708377109309,-8772.79,0.00048219,30]
[314499168,1708377109319,-1007.39,0.00048219,30]
[314499169,1708377109328,-500.0,0.00048219,30]
[314499170,1708377109338,-500.0,0.00048219,30]
[314499171,1708377109348,-500.0,0.00048219,30]
[314499172,1708377109358,-877.27,0.00048219,30]
[314499173,1708377109368,-774.82,0.00048219,30]
[314499174,1708377109378,-597.5937396,0.00048219,30]
[314499175,1708377109388,-1539.61,0.00048219,30]
[314499176,1708377109398,-740.11,0.00048219,30]
[314499177,1708377109408,-500.0,0.00048219,30]
[314499178,1708377109418,-530.62,0.00048219,30]
[314499179,1708377109429,-500.0,0.00048219,30]
[314499180,1708377109438,-1422.42,0.00048219,30]
[314499181,1708377109449,-500.0,0.00048219,30]
[314499182,1708377109460,-248.44898066,0.00048219,30]
[314499183,1708377109471,-500.0,0.00048219,30]
[314499184,1708377109481,-2610.19,0.00048219,30]
[314499185,1708377109495,-1255.72,0.00048219,30]
[314499186,1708377109505,-1016.32,0.00048219,30]
[314499187,1708377109515,-500.0,0.00048219,30]
[314499188,1708377109524,-1233.1,0.00048219,30]
[314499189,1708377109535,-5037.62,0.00048219,30]
[314499190,1708377109546,-1545.99,0.00048219,30]
[314499191,1708377109555,-500.0,0.00048219,30]
[314499192,1708377109565,-771.45,0.00048219,30]
[314499193,1708377109575,-500.0,0.00048219,30]
[314499194,1708377109585,-996.35,0.00048219,30]
[314499195,1708377109595,-1249.41,0.00048219,30]
[314499196,1708377109605,-753.57,0.00048219,30]
[314499197,1708377109615,-500.0,0.00048219,30]
[314499198,1708377109626,-500.0,0.00048219,30]
[314499199,1708377109636,-609.95,0.00048219,30]
[314499200,1708377109645,-3806.98,0.00048219,30]
[314499201,1708377109655,-4368.41,0.00048219,30]
[314499202,1708377109665,-500.0,0.00048219,30]
[314499203,1708377109675,-1205.55,0.00048219,30]
[314499204,1708377109685,-1108.98,0.00048219,30]
[314499205,1708377109695,-500.0,0.00048219,30]
[314499206,1708377109705,-500.0,0.00048219,30]
[314499207,1708377109715,-745.48,0.00048219,30]
[314499208,1708377109725,-500.0,0.00048219,30]
[314499209,1708377109735,-500.0,0.00048219,30]
[314499210,1708377109745,-500.0,0.00048219,30]
[314499211,1708377109756,-500.0,0.00048219,30]
[314499212,1708377109766,-761.98,0.00048219,30]
[314499213,1708377109777,-500.0,0.00048219,30]
[314499214,1708377109787,-1070.44,0.00048219,30]
[314499215,1708377109797,-2405.19,0.00048219,30]
[314499216,1708377109808,-1483.04,0.00048219,30]
[314499217,1708377109819,-656.25,0.00048219,30]
[314499218,1708377109829,-500.0,0.00048219,30]
[314499219,1708377109839,-4891.81,0.00048219,30]
[314499220,1708377109849,-703.9,0.00048219,30]
[314499221,1708377109860,-500.0,0.00048219,30]
[314499222,1708377109870,-1120.83,0.00048219,30]
[314499223,1708377109880,-500.0,0.00048219,30]
[314499224,1708377109891,-340.97025448,0.00048219,30]
[314499225,1708377109902,-7009.22,0.00048219,30]
[314499226,1708377109912,-5142.29,0.00048219,30]
[314499227,1708377109922,-583.58,0.00048219,30]
[314499228,1708377109932,-500.0,0.00048219,30]
[314499229,1708377109942,-500.0,0.00048219,30]
[314499230,1708377109952,-1149.32,0.00048219,30]
[314499231,1708377110205,-500.0,0.00048219,30]
[314499232,1708377110216,-1818.57,0.00048219,30]
[314499233,1708377110226,-713.94,0.00048219,30]
[314499234,1708377110236,-500.0,0.00048219,30]
[314499235,1708377110246,-2123.12,0.00048219,30]
[314499236,1708377110256,-550.56,0.00048219,30]
[314499237,1708377110266,-820.56,0.00048219,30]
[314499238,1708377110276,-4375.89,0.00048219,30]
[314499239,1708377110286,-500.0,0.00048219,30]
[314499240,1708377110296,-500.0,0.00048219,30]
[314499241,1708377110305,-1000.0,0.00048219,30]
[314499242,1708377110315,-500.0,0.00048219,30]
[314499243,1708377110325,-1716.3,0.00048219,30]
[314499244,1708377110335,-1435.17,0.00048219,30]
[314499245,1708377110345,-1857.4,0.00048219,30]
[314499246,1708377110354,-1170.62,0.00048219,30]
[314499247,1708377110364,-505.27,0.00048219,2]
[314499248,1708377110374,-1644.0,0.00048219,30]
[314499249,1708377110383,-9747.42,0.00048219,30]
[314499250,1708377110393,-500.0,0.00048219,30]
[314499251,1708377110402,-699.58,0.00048219,30]
[314499252,1708377110412,-500.0,0.00048219,30]
[314499253,1708377110422,-1379.02,0.00048219,30]
[314499254,1708377110432,-500.0,0.00048219,30]
[314499255,1708377110441,-504.45,0.00048219,30]
[314499256,1708377110451,-1052.13,0.00048219,30]
[314499257,1708377110465,-500.0,0.00048219,30]
[314499258,1708377110475,-2820.04,0.00048219,30]
[314499259,1708377110484,-1201.01,0.00048219,30]
[314499260,1708377110495,-500.0,0.00048219,30]
[314499261,1708377110504,-1773.34,0.00048219,30]
[314499262,1708377110514,-500.0,0.00048219,30]
[314499263,1708377110524,-2704.66,0.00048219,30]
[314499264,1708377110535,-1527.67,0.00048219,30]
[314499265,1708377110546,-582.39,0.00048219,30]
[314499266,1708377110556,-3977.18,0.00048219,30]
[314499267,1708377110566,-500.0,0.00048219,30]
[314499268,1708377110575,-825.53,0.00048219,30]
[314499269,1708377110588,-898.27,0.00048219,30]
[314499270,1708377110599,-500.0,0.00048219,30]
[314499271,1708377110608,-2898.65,0.00048219,30]
[314499272,1708377110618,-1746.66,0.00048219,30]
[314499273,1708377110627,-2731.53,0.00048219,30]
[314499274,1708377110637,-500.0,0.00048219,30]
[314499275,1708377110647,-968.66,0.00048219,30]
[314499276,1708377110657,-500.0,0.00048219,30]
[314499277,1708377110667,-500.0,0.00048219,30]
[314499278,1708377110677,-857.25,0.00048219,30]
[314499279,1708377110687,-740.69,0.00048219,30]
[314499280,1708377110697,-500.0,0.00048219,30]
[314499281,1708377110708,-1486.37,0.00048219,30]
[314499282,1708377110718,-1149.63,0.00048219,30]
[314499283,1708377110729,-1388.67,0.00048219,30]
[314499284,1708377110739,-1224.19,0.00048219,30]
[314499285,1708377110750,-500.0,0.00048219,30]
[314499286,1708377110759,-1243.1,0.00048219,30]
[314499287,1708377110770,-500.0,0.00048219,30]
[314499288,1708377110779,-1119.06,0.00048219,30]
[314499289,1708377110789,-500.0,0.00048219,30]
[314499290,1708377110799,-500.0,0.00048219,30]
[314499291,1708377110808,-500.0,0.00048219,30]
[314499292,1708377110819,-780.29,0.00048219,30]
[314499293,1708377110829,-995.4,0.00048219,30]
[314499294,1708377110839,-500.0,0.00048219,30]
[314499295,1708377110848,-1750.39,0.00048219,30]
[314499296,1708377110858,-734.28,0.00048219,30]
[314499297,1708377110869,-1107.14,0.00048219,30]
[314499298,1708377110880,-500.0,0.00048219,30]
[314499299,1708377110890,-8099.08,0.00048219,30]
[314499300,1708377110901,-500.0,0.00048219,30]
[314499301,1708377110911,-518.58,0.00048219,30]
[314499302,1708377110921,-575.48,0.00048219,30]
[314499303,1708377110931,-500.0,0.00048219,30]
[314499304,1708377110942,-1648.23,0.00048219,30]
[314499305,1708377110952,-1505.89,0.00048219,30]
[314499306,1708377110962,-1035.01,0.00048219,30]
[314499307,1708377110972,-2130.15,0.00048219,30]
[314499308,1708377110982,-353.09,0.0004822,2]
[314499309,1708377110992,-163.77965983,0.00048228,30]
[314499310,1708377111002,-164.60229947,0.00048252,30]
[314499311,1708377111012,-152.51359009,0.00048271,30]
[314499312,1708377111022,-161.25919619,0.00048291,30]
[314499313,1708377111032,-197.0212088,0.00048298,42]
[314499314,1708377111041,-153.13804571,0.00048318,38]
[314499315,1708377111051,-153.28144718,0.00048344,30]
[314499316,1708377111062,-161.25919619,0.00048388,30]
[314499317,1708377111071,-197.0212088,0.00048398,43]
[314499318,1708377111081,-155.64402528,0.00048403,45]
[314499319,1708377111091,-150.0,0.0004845,2]
[314499320,1708377111100,-150.0,0.00048468,7]
[314499321,1708377111110,-153.28144718,0.00048482,30]
[314499322,1708377111119,-2039.93,0.00048492,30]
[314499323,1708377111129,-1605.07,0.00048492,30]
[314499324,1708377111138,-1090.94,0.00048492,30]
[314499325,1708377111147,-1161.62,0.00048492,30]
[314499326,1708377111156,-4690.89,0.00048492,30]
[314499327,1708377111166,-2224.42,0.00048492,30]
[314499328,1708377111176,-1819.91,0.00048492,30]
[314499329,1708377111185,-809.73,0.00048492,30]
[314499330,1708377111195,-590.34,0.00048492,30]
[314499331,1708377111204,-1319.16,0.00048492,30]
[314499332,1708377111213,-886.59,0.00048492,30]
[314499333,1708377111224,-1287.42,0.00048492,30]
[314499334,1708377111234,-1242.47,0.00048492,30]
[314499335,1708377111243,-924.48,0.00048492,30]
[314499336,1708377111252,-2026.93,0.00048492,30]
[314499337,1708377111262,-1086.95,0.00048492,30]
[314499338,1708377111272,-735.92,0.00048492,30]
[314499339,1708377111281,-878.99,0.00048492,30]
[314499340,1708377111291,-1756.54,0.00048492,30]
[314499341,1708377111301,-898.46,0.00048492,30]
[314499342,1708377111311,-500.0,0.00048492,30]
[314499343,1708377111321,-957.91,0.00048492,30]
[314499344,1708377111331,-500.0,0.00048492,30]
[314499345,1708377111341,-1623.95,0.00048492,30]
[314499346,1708377111351,-1426.52,0.00048492,30]
[314499347,1708377111361,-1041.23,0.00048492,30]
[314499348,1708377111371,-1313.08,0.00048492,30]
[314499349,1708377111380,-2030.96,0.00048492,30]
[314499350,1708377111390,-500.0,0.00048492,30]
[314499351,1708377111399,-583.37,0.00048492,30]
[314499352,1708377111408,-3563.38,0.00048493,5]
[314499353,1708377111418,-151.0,0.00048493,14]
[314499354,1708377111427,-500.0,0.00048493,30]
[314499355,1708377111437,-500.0,0.00048493,30]
[314499356,1708377111446,-500.0,0.00048493,30]
[314499357,1708377111456,-500.0,0.00048493,30]
[314499358,1708377111469,-500.0,0.00048493,30]
[314499359,1708377111479,-500.0,0.00048493,30]
[314499360,1708377111491,-500.0,0.00048493,30]
[314499361,1708377111501,-500.0,0.00048493,30]
[314499362,1708377111511,-500.0,0.00048493,30]
[314499363,1708377111520,-500.0,0.00048493,30]
[314499364,1708377111530,-1000.0,0.00048493,51]
[314499365,1708377111542,-214.1,0.00048493,30]
[314499366,1708377111552,-602.01,0.00048493,30]
[314499367,1708377111562,-500.0,0.00048493,30]
[314499368,1708377111572,-500.0,0.00048493,30]
[314499369,1708377111581,-512.36,0.00048493,30]
[314499370,1708377111590,-732.56,0.00048493,30]
[314499371,1708377111600,-500.0,0.00048493,30]
[314499372,1708377111609,-500.0,0.00048493,30]
[314499373,1708377111618,-573.89,0.00048493,30]
[314499374,1708377111628,-500.0,0.00048493,30]
[314499375,1708377111637,-500.0,0.00048493,30]
[314499376,1708377111647,-500.0,0.00048493,30]
[314499377,1708377111656,-500.0,0.00048493,30]
[314499378,1708377111665,-606.28,0.00048493,30]
[314499379,1708377111675,-1049.77,0.00048493,30]
[314499380,1708377111684,-500.0,0.00048493,30]
[314499381,1708377111694,-500.0,0.00048493,30]
[314499382,1708377111703,-500.0,0.00048493,30]
[314499383,1708377111713,-500.0,0.00048493,30]
[314499384,1708377111723,-500.0,0.00048493,30]
[314499385,1708377111732,-500.0,0.00048493,30]
[314499386,1708377111743,-500.0,0.00048493,30]
[314499387,1708377111752,-500.0,0.00048493,30]
[314499388,1708377111762,-500.0,0.00048493,30]
[314499389,1708377111772,-500.0,0.00048493,30]
[314499390,1708377111782,-500.0,0.00048493,30]
[314499391,1708377111792,-500.0,0.00048493,30]
[314499392,1708377111802,-544.97,0.00048493,30]
[314499393,1708377111813,-500.0,0.00048493,30]
[314499394,1708377111823,-500.0,0.00048493,30]
[314499395,1708377111833,-500.0,0.00048493,30]
[314499396,1708377111843,-500.0,0.00048493,30]
[314499397,1708377111853,-202.09,0.00048493,30]
[314499398,1708377111863,-500.0,0.00048493,30]
[314499399,1708377111874,-500.0,0.00048493,30]
[314499400,1708377111883,-500.0,0.00048493,30]
[314499401,1708377111893,-500.0,0.00048493,30]
[314499402,1708377111903,-500.0,0.00048493,30]
[314499403,1708377111913,-500.0,0.00048493,30]
[314499404,1708377111924,-500.0,0.00048493,30]
[314499405,1708377111934,-505.06,0.00048493,30]
[314499406,1708377111944,-500.0,0.00048493,30]
[314499407,1708377111956,-1141.6,0.00048493,30]
[314499408,1708377111966,-500.0,0.00048493,30]